[Event "15th Tashkent Open Agzamov 2022"]
[Site "Tashkent"]
[Date "2022.05.05"]
[Round "1.1"]
[White "Kasimov, Ali"]
[Black "Bernadskiy, Vitaliy"]
[Result "0-1"]
[ECO "E95"]
[WhiteElo "2247"]
[BlackElo "2636"]
[Annotator "TA"]
[PlyCount "120"]
[EventDate "2022.05.05"]
[EventType "swiss"]
[EventCountry "UZB"]
[SourceTitle "playchess.com"]
[Source "ChessBase"]
[SourceQuality "1"]
[TimeControl "5400+30"]

{[%evp 14,120,47,13,46,32,49,45,46,22,40,13,31,27,81,47,42,28,24,8,10,12,9,12,8,0,17,0,0,0,0,0,0,0,0,0,0,0,6,0,0,0,-4,-14,0,-25,-16,-24,37,-54,0,-58,0,0,22,-115,0,0,32,0,0,0,0,0,0,0,18,12,17,0,0,0,0,0,0,0,0,0,0,0,0,0,0,0,0,-26,-26,-57,-48,-57,-58,-108,-119,-426,-418,-404,-396,-562,-529,-618,-582,-678,-678,-658,-651,-633,-613,-635,-635]} 1. d4 {[%emt 0:00:15]} Nf6 {[%emt 0:00:07]} 2. c4 {[%emt 0:00:29]} g6 {[%emt 0:00:21]} 3. Nc3 {[%emt 0:00:52]} Bg7 {[%emt 0:00:09]} 4. e4 {[%emt 0:00:24]} d6 {[%emt 0:00:04]} 5. Nf3 {[%emt 0:01:22]} O-O {[%emt 0:00:09]} 6. Be2 {[%emt 0:00:50]} Nbd7 {[%emt 0:03:43]} 7. O-O {[%emt 1:29:48]} e5 {[%emt 0:00:07]} 8. Re1 {[%emt 0:00:00]} b6 {[%emt 0:06:30] E95: King's Indian: Classical: 7...Nbd7 8 Re1.} 9. Bf1 {[%emt 0:00:00]} exd4 {[%emt 0:01:41]} 10. Nxd4 {[%emt 0:00:00]} Bb7 {[%emt 0:00:02][%cal Of6g4] White is slightly better.} 11. Bg5 {[%emt 0:00:00][%cal Bc1g5,Bg5h4,Bh4f2][%mdl 32]} h6 {[%emt 0:01:50]} 12. Bh4 {[%emt 0:00:00]} Re8 {[%emt 0:00:17]} 13. f3 {[%emt 0:00:00]} c6 {[%emt 0:00:40] [#]} (13... Nc5 $11) 14. Bf2 $146 {[%emt 0:00:00]} ({Predecessor:} 14. Qd2 a6 15. Rad1 b5 16. Nb3 bxc4 17. Bxc4 Bf8 18. Qc2 Qb6+ 19. Bf2 Qc7 20. Bd4 {0-1 (47) Legde,G (2265)-Bosboom,M (2395) Germany 1993}) 14... a6 {[%emt 0:02:55]} 15. a4 {[%emt 0:00:00]} a5 {[%emt 0:02:43]} 16. Qc2 {[%emt 0:00:00]} Nc5 {[%emt 0:02:21][%cal Bd7c5,Bc5a6,Ba6b4][%mdl 32]} 17. Rad1 {[%emt 0:00:00]} Qe7 {[%emt 0:00:20]} 18. g3 {[%emt 0:00:00]} Rad8 {[%emt 0:00:41]} 19. Bg2 {[%emt 0:00:00]} Qf8 {[%emt 0:00:45]} 20. h3 {[%emt 0:00:00]} Nfd7 {[%emt 0:00:31]} 21. f4 {[%emt 0:00:00]} Na6 {[%emt 0:00:03]} 22. Nde2 {[%emt 0:00:00]} (22. e5 $2 Nb4 23. Qb1 dxe5 $19) 22... Nb4 {[%emt 0:01:19]} 23. Qb1 {[%emt 0:00:00]} Nc5 {[%emt 0:00:33]} 24. Nd4 {[%emt 0:00:00]} Rd7 {[%emt 0:11:41]} 25. Re2 {[%emt 0:00:00]} Kh7 {[%emt 0:04:22]} 26. b3 {[%emt 0:00:00]} Rde7 {[%emt 0:03:16]} 27. Red2 {[%emt 0:00:00]} Qh8 {[%emt 0:00:24]} 28. Rc1 {[%emt 0:00:00]} Ba6 {[%emt 0:03:10]} 29. Rcd1 {[%emt 0:00:00]} h5 {[%emt 0:01:43]} 30. Bf3 {[%emt 0:00:00][%cal Of3h5]} Kg8 {[%emt 0:02:56]} (30... Bc8 $11) 31. Kg2 {[%emt 0:00:00]} (31. e5 $14 Bb7 32. exd6) 31... Bb7 {[%emt 0:00:19]} (31... Bc8 $1 $15) 32. Rc1 {[%emt 0:01:01]} (32. g4 $11) 32... h4 {[%emt 0:01:52]} ({Black should play} 32... Qh6 $15 33. h4 Bc8) 33. g4 $11 {[%emt 0:06:06]} Ne6 {[%emt 0:01:21]} 34. Nce2 {[%emt 0:00:23]} (34. Nxe6 $11 Rxe6 35. e5) 34... Nxd4 {[%emt 0:01:59]} ({Black should try} 34... Nc7 $17 {And now ...c5 would win.} 35. Nc2 c5 36. Nxb4 axb4) 35. Nxd4 {[%emt 0:00:06]} Na6 {[%emt 0:02:10]} 36. Ne2 {[%emt 0:01:50]} ({But not} 36. e5 dxe5 37. Nxc6 Re6 $15) 36... c5 {[%emt 0:00:53]} 37. Rxd6 {[%emt 0:01:34]} Bxe4 {[%emt 0:00:10]} 38. Bxe4 {[%emt 0:00:08]} Rxe4 {[%emt 0:00:04]} 39. Ng1 {[%emt 0:01:18]} Qh6 {[%emt 0:05:42]} 40. g5 $1 {[%emt 0:01:44]} Qh5 {[%emt 0:00:02]} 41. Re1 {[%emt 0:00:45]} Rxe1 {[%emt 0:01:48]} 42. Bxe1 {[%emt 0:00:02]} Nc7 {[%emt 0:01:52] White must now prevent ...Ne6.} 43. Bf2 {[%emt 0:01:57]} Ne6 {[%emt 0:20:22]} 44. Qe4 {[%emt 0:00:06]} Bf8 $36 {[%emt 0:00:22][%mdl 2048] Black is more active.} 45. Rd7 {[%emt 0:00:40]} Re7 {[%emt 0:05:07]} 46. Rxe7 {[%emt 0:00:23]} Bxe7 {[%emt 0:00:03]} 47. Nf3 {[%emt 0:00:41]} Bd6 {[%emt 0:00:23]} 48. Be3 {[%emt 0:00:25]} Qh8 {[%emt 0:00:25]} 49. Ne5 {[%emt 0:01:15]} Bxe5 {[%emt 0:01:30]} 50. fxe5 {[%emt 0:00:29]} Kg7 $1 {[%emt 0:00:33]} 51. Kf3 {[%emt 0:00:16]} Qb8 {[%emt 0:02:56]} 52. Kg4 {[%emt 0:00:33] [#]} (52. Kg2 $15) 52... Qd8 $1 $17 {[%emt 0:00:25] aiming for ...Qd1+.} ({Much worse is} 52... Qh8 $6 53. Kf3 $15) 53. Kxh4 $2 {[%emt 0:00:44][%mdl 8192] This move loses the game for White.} (53. Qf3 $17 {nothing else works.}) 53... Qd1 $19 {[%emt 0:00:02]} 54. Kg3 {[%emt 0:00:22]} Qxb3 {[%emt 0:01:30]} ({Don't blunder} 54... Qe1+ $2 55. Kh2 $19) 55. Kf2 {[%emt 0:00:17]} (55. h4 {was the only defense.}) 55... Qxa4 {[%emt 0:00:11] Black is clearly winning.} 56. h4 {[%emt 0:00:22]} b5 {[%emt 0:00:40]} 57. h5 {[%emt 0:00:31]} gxh5 {[%emt 0:00:33]} 58. g6 {[%emt 0:00:42]} Qa2+ {[%emt 0:00:22]} 59. Ke1 {[%emt 0:00:29]} Qxc4 {[%emt 0:01:14]} 60. Qf5 {[%emt 0:00:08]} fxg6 {[%emt 0:01:01] Weighted Error Value: White=0.31/Black=0.11 (very precise)} 0-1

[Event "15th Tashkent Open Agzamov 2022"]
[Site "Tashkent"]
[Date "2022.05.05"]
[Round "1.2"]
[White "Indjic, Aleksandar"]
[Black "Karimov, Ibragim"]
[Result "1/2-1/2"]
[ECO "A54"]
[WhiteElo "2621"]
[BlackElo "2221"]
[Annotator "TA"]
[PlyCount "118"]
[EventDate "2022.05.05"]
[EventType "swiss"]
[EventCountry "UZB"]
[SourceTitle "playchess.com"]
[Source "ChessBase"]
[SourceQuality "1"]
[TimeControl "5400+30"]

{[%evp 14,118,30,10,45,24,16,17,59,76,66,33,26,35,73,60,85,94,87,84,74,33,41,37,35,31,36,46,34,41,34,42,50,34,27,34,18,7,39,31,33,20,25,0,7,0,54,0,0,0,0,0,0,0,0,0,12,9,10,0,0,0,0,0,0,0,0,-8,-8,-14,0,0,0,0,0,0,0,0,0,0,0,0,0,0,0,0,0,0,0,0,0,0,592,592,433,0,0,0,0,0,0,0,0,0,0,0,0]} 1. d4 {[%emt 0:00:17]} d6 {[%emt 0:01:16]} 2. Nf3 {[%emt 0:00:20]} Nf6 {[%emt 0:00:22]} 3. c4 {[%emt 0:00:13]} Nbd7 {[%emt 0:01:19]} 4. Nc3 {[%emt 0:00:09]} e5 {[%emt 0:05:50]} 5. Bg5 {[%emt 0:00:50]} Be7 {[%emt 0:02:02]} 6. e3 {[%emt 0:00:16]} c6 {[%emt 0:01:20]} 7. Qc2 {[%emt 0:00:21]} O-O {[%emt 0:05:54]} 8. O-O-O {[%emt 0:03:10]} Qc7 {[%emt 0:05:47] A54: Old Indian Defence with Nf3, but without e4.} 9. h4 {[%emt 0:01:20][%cal Og2g4]} Re8 {[%emt 0:02:57]} 10. Bd3 {[%emt 0:03:59][%cal Og2g4]} Nf8 {[%emt 0:04:55]} 11. Bxf6 {[%emt 0:09:42]} Bxf6 {[%emt 0:00:09]} 12. Ne4 {[%emt 0:00:06] [#]} Qe7 $146 {[%emt 0:16:59]} ({Predecessor:} 12... Bd8 13. dxe5 dxe5 14. Nd6 Re7 15. Ng5 h6 16. Bh7+ Kh8 17. Ndxf7+ Rxf7 18. Nxf7+ Qxf7 19. Rxd8 {1-0 (33) Piasetski,L (2395)-Ruiz Gutierrez,M Torremolinos 1977}) 13. dxe5 {[%emt 0:05:32]} dxe5 {[%emt 0:02:17]} 14. c5 {[%emt 0:00:28]} b6 {[%emt 0:22:38]} 15. Nfg5 {[%emt 0:04:12] White is much more active.} Bxg5 {[%emt 0:09:38]} 16. hxg5 {[%emt 0:00:38]} (16. Nxg5 $6 h6 17. Bh7+ Kh8 $11) 16... Rd8 {[%emt 0:02:40]} 17. f4 {[%emt 0:01:18]} exf4 {[%emt 0:02:35]} 18. exf4 {[%emt 0:00:10]} Bf5 $1 {[%emt 0:02:36][%cal Od8d3]} 19. Rde1 {[%emt 0:14:43][%cal Oe4f6]} Bxe4 {[%emt 0:00:56]} 20. Bxe4 {[%emt 0:00:07]} Qxc5 {[%emt 0:00:08]} 21. Qxc5 {[%emt 0:00:06]} ({But not} 21. Bxc6 $2 Qxc2+ 22. Kxc2 Rac8 $19) 21... bxc5 {[%emt 0:00:04]} 22. Bxc6 {[%emt 0:00:09]} Rac8 {[%emt 0:00:06]} 23. Be4 {[%emt 0:00:19]} g6 {[%emt 0:00:40]} 24. g3 {[%emt 0:00:31]} Ne6 {[%emt 0:04:50]} 25. Rh2 {[%emt 0:00:08]} Rd4 {[%emt 0:00:57]} 26. Bc2 {[%emt 0:00:36]} Kg7 {[%emt 0:00:44]} 27. Re5 {[%emt 0:02:53]} Rc7 {[%emt 0:00:47]} 28. a3 {[%emt 0:01:19]} c4 {[%emt 0:00:48]} 29. Kb1 {[%emt 0:09:26]} Rcd7 {[%emt 0:01:18]} ({Better is} 29... c3 $11) 30. Ra5 {[%emt 0:04:50]} (30. f5 $1 $14 Nxg5 31. fxg6) 30... c3 $11 {[%emt 0:00:58]} 31. bxc3 {[%emt 0:01:59]} Rc4 {[%emt 0:00:04]} 32. f5 {[%emt 0:00:43]} Rb7+ {[%emt 0:01:02]} 33. Ka2 {[%emt 0:00:11]} gxf5 {[%emt 0:00:14]} 34. Bxf5 {[%emt 0:02:23]} Nf8 {[%emt 0:01:11]} 35. Rc2 {[%emt 0:00:24]} Ne6 {[%emt 0:01:00]} 36. Rd5 {[%emt 0:09:22]} Nxg5 {[%emt 0:00:24]} 37. Bd3 {[%emt 0:01:38][%csl LRc4,LRg5]} Rg4 {[%emt 0:00:09]} 38. c4 {[%emt 0:00:13] And now c5 would win.} Rxg3 {[%emt 0:01:01]} 39. c5 {[%emt 0:00:07]} Ne6 {[%emt 0:00:10]} 40. Bf5 {[%emt 0:01:41] [#] Black must now prevent c6.} Rbb3 {[%emt 0:01:13]} 41. Bxe6 {[%emt 0:00:49]} (41. c6 {seems wilder.} Rxa3+ 42. Kb2 Rab3+ 43. Ka2) 41... fxe6 {[%emt 0:00:20][%mdl 4096] Endgame KRR-KRR} 42. Rd7+ {[%emt 0:00:08]} Kf6 {[%emt 0:00:03]} 43. Rxa7 {[%emt 0:01:16]} Rgc3 {[%emt 0:00:14] Hoping for ...Rxa3+.} 44. Rxc3 {[%emt 0:03:28]} Rxc3 {[%emt 0:00:00] KR-KR} 45. Rc7 {[%emt 0:00:09]} Ke5 {[%emt 0:00:31]} 46. Kb2 {[%emt 0:00:19]} Rc4 {[%emt 0:00:01]} 47. Kb3 {[%emt 0:00:52]} Rc1 {[%emt 0:02:53]} 48. Kb4 {[%emt 0:20:40]} Rb1+ {[%emt 0:00:00]} 49. Kc4 {[%emt 0:00:00]} h5 {[%emt 0:00:00]} 50. Rh7 {[%emt 0:00:00]} Rc1+ {[%emt 0:00:00]} 51. Kb5 {[%emt 0:00:00] Strongly threatening c6.} Kd5 {[%emt 0:00:00] Inhibits c6.} 52. Rd7+ {[%emt 0:00:00]} Ke4 $2 {[%emt 0:00:28][%mdl 8192] [#]} (52... Ke5 $11 {and Black has nothing to worry.}) 53. c6 $1 $18 {[%emt 0:00:00]} h4 {[%emt 0:01:03][%cal Bh5h4,Bh4h3,Bh3h2][%mdl 32]} 54. c7 $2 {[%emt 0:00:00]} (54. Rh7 Rc3 55. c7 (55. Rxh4+ Kd5 $11) 55... Ke5) ({White must play} 54. Kb6 $18) 54... h3 $11 {[%emt 0:00:14] The position is equal.} 55. Rh7 {[%emt 0:00:00]} h2 $1 {[%emt 0:00:28]} 56. Kb6 {[%emt 0:00:00]} Rb1+ {[%emt 0:00:03]} 57. Ka7 {[%emt 0:00:00]} Rc1 {[%emt 0:00:01][%cal Oc1c7] ...Rxc7+! is the strong threat.} 58. Kb7 {[%emt 0:00:00]} Rb1+ {[%emt 0:00:05]} 59. Ka6 {[%emt 0:00:00]} Rc1 {[%emt 0:00:06] Weighted Error Value: White=0.16 (very precise) /Black=0.23 (precise)} 1/2-1/2

[Event "15th Tashkent Open Agzamov 2022"]
[Site "Tashkent"]
[Date "2022.05.05"]
[Round "1.3"]
[White "Kurmangaliyeva, Liya"]
[Black "Sindarov, Javokhir"]
[Result "0-1"]
[ECO "B45"]
[WhiteElo "2207"]
[BlackElo "2609"]
[Annotator "TA"]
[PlyCount "124"]
[EventDate "2022.05.05"]
[EventType "swiss"]
[EventCountry "UZB"]
[SourceTitle "playchess.com"]
[Source "ChessBase"]
[SourceQuality "1"]
[TimeControl "5400+30"]

{[%evp 12,124,26,36,33,39,39,31,33,45,54,28,16,24,29,37,48,29,31,18,31,29,51,0,0,0,0,-18,74,78,64,66,81,27,31,35,44,31,47,0,0,0,0,-5,0,-17,-9,-13,-7,-14,-8,-7,-10,-12,-4,-22,-22,-39,-39,-44,-37,-88,-45,-60,-65,-67,-57,-107,-113,-143,-55,-66,-57,-55,-55,-60,-61,-64,-8,-8,-3,-8,-8,-61,-8,-51,-53,-411,-390,-358,-272,-366,-339,-622,-612,-706,-642,-639,-570,-29967,-29970,-29970,-29971,-29968,-29972,-29972,-29973,-29976,-29977,-29977,-29978,-29980,-29981,-29985,-29986]} 1. e4 {[%emt 0:00:07]} c5 {[%emt 0:00:25]} 2. Nf3 {[%emt 0:00:19]} Nc6 {[%emt 0:00:18]} 3. d4 {[%emt 0:00:34]} cxd4 {[%emt 0:00:14]} 4. Nxd4 {[%emt 0:00:08]} Nf6 {[%emt 0:00:09]} 5. Nc3 {[%emt 0:00:26]} e6 {[%emt 0:00:06]} 6. Ndb5 {[%emt 0:01:54]} Bc5 {[%emt 0:01:28]} 7. Bf4 {[%emt 0:00:42]} O-O {[%emt 0:00:12] B45: Sicilian Four Knights.} 8. Bc7 {[%emt 0:00:42]} Qe7 {[%emt 0:00:16] [#] White must now prevent ...d5.} 9. Bd6 $1 {[%emt 0:00:06]} Bxd6 {[%emt 0:00:04] White is slightly better.} 10. Qxd6 {[%emt 0:00:08]} Qd8 {[%emt 0:00:01]} 11. O-O-O {[%emt 0:00:37]} (11. Nc7 $5 {[%cal Rc7a8]} Rb8 12. Be2 $11) 11... a6 {[%emt 0:00:08]} 12. Nd4 {[%emt 0:00:12]} Ne7 {[%emt 0:00:11]} 13. h4 {[%emt 0:02:50]} b5 {[%emt 0:03:02]} 14. h5 {[%emt 0:01:01]} h6 {[%emt 0:02:38]} 15. g4 {[%emt 0:00:32][%cal Og4g5]} Bb7 {[%emt 0:03:08]} 16. Bd3 {[%emt 0:08:19]} Nc8 {[%emt 0:11:35]} 17. Qg3 {[%emt 0:13:47]} (17. Qf4 $14) 17... b4 $1 $11 {[%emt 0:02:01]} 18. g5 $1 {[%emt 0:00:26]} hxg5 {[%emt 0:00:16]} 19. Qxg5 {[%emt 0:00:11]} Nh7 {[%emt 0:00:14]} (19... bxc3 20. Rdg1 Ng4 21. Qxg4 $18) (19... Nd6 $1 $11 20. Rhg1 Nfe8 21. Qxd8 Rxd8) 20. Qxd8 $16 {[%emt 0:02:39]} Rxd8 {[%emt 0:00:04] [#]} 21. Nce2 $146 {[%emt 0:28:17]} ({Predecessor:} 21. Na4 d6 22. Rdg1 Nf6 23. f3 Ne7 24. Rg5 Nc6 25. Nxc6 Bxc6 26. Nb6 Rab8 27. Nc4 {1-0 (59) Lobanov,S (2516)-Schekachikhin,M (2417) St Petersburg 2021}) 21... Ne7 {[%emt 0:01:06]} 22. Ng3 {[%emt 0:01:26]} (22. Rdg1 $16) 22... Nc6 {[%emt 0:03:23]} 23. Nxc6 {[%emt 0:05:17]} Bxc6 {[%emt 0:00:15]} 24. f4 {[%emt 0:03:24]} Nf6 {[%emt 0:07:04]} 25. Rh4 {[%emt 0:06:11]} (25. Rhg1 $14 {should be considered.}) 25... d6 $1 $11 {[%emt 0:01:15]} 26. Rg1 {[%emt 0:02:42]} Kf8 {[%emt 0:00:37]} 27. Re1 {[%emt 0:05:07]} a5 {[%emt 0:02:31]} 28. Nf1 {[%emt 0:04:48]} Ke7 {[%emt 0:00:31]} 29. e5 {[%emt 0:02:24]} dxe5 {[%emt 0:00:34]} 30. Rxe5 {[%emt 0:00:19]} Rd5 {[%emt 0:00:54] With the idea ...Rxe5.} 31. Rg5 {[%emt 0:03:43]} Rxg5 {[%emt 0:06:49]} 32. fxg5 {[%emt 0:00:10] [#] Threatens to win with Rc4.} Nd7 {[%emt 0:00:01]} 33. Ng3 {[%emt 0:02:40]} Ne5 {[%emt 0:02:19]} 34. Be2 {[%emt 0:01:06]} f5 {[%emt 0:00:29]} 35. gxf6+ $1 {[%emt 0:02:32]} gxf6 {[%emt 0:00:05]} 36. Kd2 {[%emt 0:00:50]} (36. Ne4 $15) 36... Rg8 {[%emt 0:00:42]} 37. Nf1 {[%emt 0:01:21]} f5 {[%emt 0:00:06]} 38. Ne3 {[%emt 0:00:44]} Kf6 {[%emt 0:00:39] Black is more active.} 39. c3 {[%emt 0:00:35]} (39. h6 $15) 39... bxc3+ $17 {[%emt 0:01:16]} 40. bxc3 {[%emt 0:00:21]} Be4 {[%emt 0:00:04]} (40... Kg5 $17 41. Rh2 Rh8) 41. Nc4 $15 {[%emt 0:00:44]} Rd8+ {[%emt 0:00:12]} 42. Ke3 {[%emt 0:00:28]} Nf7 {[%emt 0:05:14]} 43. h6 {[%emt 0:00:28]} e5 {[%emt 0:00:33]} 44. h7 {[%emt 0:00:31]} Bb1 {[%emt 0:01:31]} (44... a4 $15) 45. Nxa5 {[%emt 0:00:29]} Rh8 {[%emt 0:01:53]} 46. Nc4 {[%emt 0:00:37]} Bxa2 {[%emt 0:01:25]} 47. Nd2 {[%emt 0:00:27]} (47. Nb6 $11) 47... Be6 {[%emt 0:00:10]} (47... Ng5 $1 $15 48. Rh6+ Kg7) 48. c4 {[%emt 0:00:33]} Ng5 {[%emt 0:00:39]} 49. Nf3 $2 {[%emt 0:00:31][%mdl 8192] This costs White the game.} ({Much worse is} 49. Rh6+ Kg7 50. Rh5 Kg6 $17) ({White should try} 49. c5 $1 $15) 49... Rxh7 $19 {[%emt 0:00:17]} 50. Rxh7 {[%emt 0:00:24]} Nxh7 {[%emt 0:00:07][%mdl 4096] Endgame KBN-KBN} 51. c5 {[%emt 0:00:34]} Bd5 {[%emt 0:00:48] aiming for ...Nf8.} 52. Nd2 $2 {[%emt 0:00:27]} (52. Ne1) 52... f4+ {[%emt 0:01:08]} 53. Kd3 {[%emt 0:00:30]} Ng5 {[%emt 0:00:10] Against Bf3} 54. Bg4 {[%emt 0:00:23]} Ne6 {[%emt 0:00:48]} 55. Bxe6 {[%emt 0:00:38]} Kxe6 {[%emt 0:00:04] KB-KN. Black mates.} 56. Nb1 {[%emt 0:00:33]} Kd7 {[%emt 0:00:13]} 57. Nc3 {[%emt 0:00:26]} Kc6 {[%emt 0:00:05]} 58. Na4 {[%emt 0:00:22]} Kb5 {[%emt 0:00:15]} 59. Nb6 {[%emt 0:00:35]} Kxc5 {[%emt 0:00:07]} 60. Nd7+ {[%emt 0:00:33]} Kd6 {[%emt 0:00:05]} 61. Nf6 {[%emt 0:00:36]} Ke6 {[%emt 0:00:18]} 62. Nh5 {[%emt 0:00:24]} Kf7 {[%emt 0:00:14] Weighted Error Value: White=0.37/Black=0.12 (very precise)} 0-1

[Event "15th Tashkent Open Agzamov 2022"]
[Site "Tashkent"]
[Date "2022.05.05"]
[Round "1.4"]
[White "Iskandarov, Misratdin"]
[Black "Temirov, Bakhyt"]
[Result "1-0"]
[ECO "B07"]
[WhiteElo "2601"]
[BlackElo "2205"]
[Annotator "TA"]
[PlyCount "105"]
[EventDate "2022.05.05"]
[EventType "swiss"]
[EventCountry "UZB"]
[SourceTitle "playchess.com"]
[Source "ChessBase"]
[SourceQuality "1"]
[TimeControl "5400+30"]

{[%evp 9,105,54,113,25,52,0,0,8,13,-12,25,29,19,14,21,15,22,14,26,27,24,24,22,8,9,15,10,0,-7,-12,-6,-37,-26,-17,-31,-38,-19,-15,0,0,0,0,0,-11,0,0,32,40,42,39,78,34,45,6,8,8,18,18,40,18,84,18,88,88,308,167,479,358,593,572,4678,3000,2661,2474,1379,12828,29938,29945,12603,5089,6551,6240,29957,29953,12211,2329,29974,29975,29975,29976,29974,29975,29983,29984,29989,29990,29990,29991]} 1. e4 {[%emt 0:00:04]} d6 {[%emt 0:01:57]} 2. d4 {[%emt 0:00:10]} Nf6 {[%emt 0:00:13]} 3. Nc3 {[%emt 0:00:06]} Nbd7 {[%emt 0:00:44]} 4. f4 {[%emt 0:01:16]} e5 {[%emt 0:00:37]} 5. Nf3 {[%emt 0:00:06]} Be7 {[%emt 0:05:16]} (5... exd4 $14 6. Qxd4 c6) 6. Be2 {[%emt 0:10:22] B07: Pirc Defence: Miscellaneous Systems.} (6. fxe5 $16 dxe5 7. dxe5 (7. Nxe5 Nxe5 8. dxe5 Qxd1+ 9. Kxd1 Ng4 $11)) 6... O-O {[%emt 0:02:44]} 7. O-O {[%emt 0:00:11]} c6 {[%emt 0:01:46]} 8. Kh1 {[%emt 0:00:43][%cal Rf4e5] The position is equal.} Qc7 {[%emt 0:06:38]} 9. Qe1 {[%emt 0:08:14]} b5 {[%emt 0:20:22]} 10. dxe5 {[%emt 0:02:05]} (10. fxe5 {is more complex.} dxe5 11. dxe5 Nxe5 12. Nxe5 Qxe5 13. Bf4) 10... dxe5 {[%emt 0:00:32]} 11. fxe5 {[%emt 0:00:05] [#]} Nxe5 $146 {[%emt 0:01:43]} ({Predecessor:} 11... Ng4 12. Bxb5 Nxh2 13. Nxh2 cxb5 14. Nd5 Qd8 15. Nf3 Nb6 16. Nxe7+ Qxe7 17. Qg3 Qe6 {1-0 (31) Truta,S (2265)-Mikac,T Portoroz 1989}) 12. Nxe5 {[%emt 0:01:43]} Qxe5 {[%emt 0:02:28]} 13. Bf4 {[%emt 0:00:06]} Qe6 {[%emt 0:13:53]} 14. e5 {[%emt 0:02:28]} Nd5 {[%emt 0:01:37]} 15. Nxd5 {[%emt 0:00:07]} Qxd5 {[%emt 0:05:25]} 16. Bd3 {[%emt 0:02:13]} Be6 {[%emt 0:01:39]} 17. Qg3 {[%emt 0:08:28]} Rfd8 {[%emt 0:05:05]} 18. Bh6 {[%emt 0:01:57][%csl Gh6][%cal Rg3g7]} g6 {[%emt 0:05:36]} 19. b3 {[%emt 0:10:56]} Qd4 {[%emt 0:03:51]} 20. Rae1 {[%emt 0:01:02]} Qh4 {[%emt 0:01:56]} ({But not} 20... Bh4 21. Qf3 Qc5 22. h3 $11) 21. Qxh4 {[%emt 0:09:26]} Bxh4 {[%emt 0:00:17]} 22. Rd1 {[%emt 0:00:39]} Be7 {[%emt 0:07:04]} 23. Be4 {[%emt 0:00:51]} Rxd1 {[%emt 0:00:11]} 24. Rxd1 {[%emt 0:00:05]} Rc8 {[%emt 0:00:05]} 25. Be3 {[%emt 0:03:00]} a5 {[%emt 0:06:10]} 26. a4 {[%emt 0:05:23]} bxa4 {[%emt 0:01:59]} 27. bxa4 {[%emt 0:00:10]} Bd5 {[%emt 0:00:39]} 28. Bxd5 {[%emt 0:01:14]} cxd5 {[%emt 0:00:05]} 29. Rxd5 {[%emt 0:00:06]} Rxc2 $14 {[%emt 0:00:20][%mdl 4096] Endgame KRB-KRB} 30. g3 {[%emt 0:03:53]} Bb4 {[%emt 0:03:46]} 31. Bg5 {[%emt 0:02:10]} Rc8 {[%emt 0:00:45]} 32. Bf6 {[%emt 0:00:09]} Ra8 {[%emt 0:00:28]} 33. Kg2 {[%emt 0:00:21]} h6 {[%emt 0:00:10]} 34. Kf3 {[%emt 0:00:40]} Rc8 {[%emt 0:00:48]} (34... h5 $11) 35. Rd7 {[%emt 0:00:36]} (35. g4 $16) 35... Bf8 {[%emt 0:00:37]} (35... h5 $11) 36. Ke4 $16 {[%emt 0:02:25] Black must now prevent Rd8. White is more active.} Ra8 {[%emt 0:00:28] Loses the game.} (36... Bb4 $16 {keeps fighting.}) 37. Kd5 {[%emt 0:00:26]} (37. Rd8 $142 Rxd8 38. Bxd8) 37... g5 $2 {[%emt 0:00:33]} (37... Bb4 {is tougher.} 38. Kc6 Re8) 38. g4 {[%emt 0:00:54] Threatens to win with Rd8.} Rc8 {[%emt 0:00:18] [#]} (38... Bb4 39. e6 fxe6+ 40. Kxe6 Rc8 41. Rg7+ Kf8) 39. Rd8 $1 $18 {[%emt 0:00:19]} Rxd8+ {[%emt 0:00:34]} 40. Bxd8 {[%emt 0:00:06] KB-KB} Bb4 {[%emt 0:00:30]} 41. Kc4 {[%emt 0:03:15] Intending Kb5 and mate.} Kg7 {[%emt 0:00:37]} 42. Kb5 {[%emt 0:00:33]} Bc3 {[%emt 0:00:07]} 43. Bxa5 {[%emt 0:01:40]} Bxe5 {[%emt 0:00:05]} 44. Bb6 {[%emt 0:00:22] a5 would kill now.} Bc3 {[%emt 0:01:19]} 45. Kc4 {[%emt 0:00:34]} ({Less strong is} 45. a5 Bxa5 46. Bxa5 (46. Kxa5 Kg6 $11) 46... Kg6 $16) 45... Be1 {[%emt 0:00:21]} 46. Kd5 {[%emt 0:00:46]} h5 {[%emt 0:00:36]} 47. h3 {[%emt 0:04:25]} (47. gxh5 $142 f5 48. a5 Bxa5 49. Bxa5) 47... hxg4 {[%emt 0:00:33]} 48. hxg4 {[%emt 0:00:04][%cal Bh3g4,Bg4f5][%mdl 32] White mates.} f5 {[%emt 0:00:31]} 49. gxf5 {[%emt 0:00:06]} Kf6 {[%emt 0:00:25]} 50. Ke4 {[%emt 0:00:08]} g4 {[%emt 0:00:11]} 51. a5 {[%emt 0:00:50][%cal Ba4a5,Ba5a6,Ba6a7][%mdl 32]} g3 {[%emt 0:00:49]} 52. a6 {[%emt 0:00:05]} Bf2 {[%emt 0:00:35] [#]} 53. a7 $1 {[%emt 0:18:57] Weighted Error Value: White=0.21 (precise) /Black=0.53} 1-0